fUST/lending_fUST_20250424
["ID","MTS","AMOUNT","RATE_DAILY","PERIOD"]
[358820529,1745465448303,-800.0,0.00022287,2]
[358820530,1745465448312,-800.0,0.00022289,2]
[358820531,1745465448323,-151.0,0.000223,6]
[358820532,1745465448333,-199.79761965,0.000223,7]
[358820533,1745465448343,-800.0,0.000223,2]
[358820534,1745465448352,-800.0,0.00022334,2]
[358820535,1745465448362,-587.0,0.00022342,2]
[358820536,1745465448371,-151.0,0.0002235,7]
[358820537,1745465448380,-151.0,0.0002235,7]
[358820538,1745465448392,-151.0,0.00022354,6]
[358820539,1745465448405,-929.87033917,0.00022365,2]
[358820540,1745465448415,-800.0,0.00022375,2]
[358820541,1745465448424,-800.0,0.00022392,2]
[358820542,1745465448434,-800.0,0.00022404,2]
[358820543,1745465448443,-800.0,0.00022407,2]
[358820544,1745465448453,-151.0,0.00022409,6]
[358820545,1745465448462,-800.0,0.00022417,2]
[358820546,1745465448472,-800.0,0.00022417,2]
[358820547,1745465448482,-800.0,0.0002242,2]
[358820548,1745465448492,-800.0,0.00022427,2]
[358820549,1745465448501,-151.0,0.00022438,7]
[358820550,1745465448511,-175.374669,0.00022438,7]
[358820551,1745465448522,-175.374669,0.00022438,7]
[358820552,1745465448531,-151.0,0.00022438,7]
[358820553,1745465448541,-151.0,0.00022438,7]
[358820554,1745465448551,-151.0,0.00022438,2]
[358820555,1745465448560,-151.0,0.00022438,7]
[358820556,1745465448570,-343.276344,0.00022438,7]
[358820557,1745465448581,-343.276344,0.00022438,7]
[358820558,1745465448590,-800.0,0.00022447,2]
[358820559,1745465448600,-800.0,0.00022456,2]
[358820560,1745465448610,-602.37289556,0.00022464,3]
[358820561,1745465449021,-500.0,0.00021917,2]
[358820562,1745465449031,-500.0,0.00022191,2]
[358820563,1745465449041,-352.64554896,0.00022464,3]
[358820564,1745465449053,-651.80801428,0.00022464,3]
[358820565,1745465449065,-22830.37941863,0.00022464,3]
[358820566,1745465449075,-26017.12185625,0.00022464,2]
[358820567,1745465449674,-500.0,0.00021917,2]
[358820568,1745465449686,-500.0,0.00021917,2]
[358820569,1745465449696,-500.0,0.00022191,2]
[358820570,1745465449708,-761.75805476,0.00022464,2]
[358820571,1745465449720,-1367.26537925,0.00022464,2]
[358820572,1745465450240,-443.970125,0.00021917,2]
[358820573,1745465450252,-56.029875,0.00021917,2]
[358820574,1745465450262,-500.0,0.00021917,2]
[358820575,1745465450272,-81331.85556197,0.00022464,2]
[358820576,1745465486264,-233.0,0.00018084,2]
[358820578,1745465560644,-185.429996,0.00018083,2]
[358820579,1745465584886,-185.96319478,0.00018082,2]
[358820580,1745465643885,-242.74559143,0.00018082,2]
[358820581,1745465672660,-202.43505823,0.00018082,2]
[358820582,1745465703787,-300.0,0.00018081,2]
[358820585,1745465762833,-262.87316254,0.00018081,2]
[358820586,1745465796676,-185.429996,0.00018081,2]
[358820587,1745465815699,272.55198691,0.00017982,2]
[358820588,1745465823380,-196.23684146,0.0001808,2]
[358820589,1745465884024,-152.0,0.0001808,2]
[358820590,1745465912602,-180.99979995,0.0001808,2]
[358820591,1745465923707,1043.58506269,0.00017981,2]
[358820592,1745465924267,-180.16973121,0.0001808,2]
[358820593,1745465945710,-208.50152978,0.00018079,2]
[358820594,1745466003812,-214.40104438,0.00018079,2]
[358820596,1745466010008,-85.59895562,0.00018079,2]
[358820597,1745466010035,-66.40104438,0.00018079,2]
[358820599,1745466016303,-213.60290534,0.00018079,2]
[358820600,1745466034919,-423.9571884,0.00018078,2]
[358820601,1745466063136,-152.0,0.00018078,2]
[358820602,1745466124478,-198.76601609,0.00018078,2]
[358820603,1745466159744,-152.0,0.00018077,2]
[358820604,1745466195499,1000.0,0.00018,5]
[358820605,1745466275299,-218.37026628,0.00018076,2]
[358820612,1745466394252,-240.992,0.00018075,2]
[358820614,1745466515635,-190.35463186,0.00018074,2]
[358820615,1745466593453,-250.28310186,0.00018074,2]
[358820617,1745466602888,-250.28310186,0.00018073,2]
[358820618,1745466610008,-49.71689814,0.00018073,2]
[358820619,1745466610044,-438.30745763,0.00018073,2]
[358820620,1745466631353,-158.22064414,0.00018073,2]
[358820628,1745466632018,-339.91145974,0.00018073,2]
[358820629,1745466632072,-263.56043849,0.00018073,2]
[358820630,1745466632083,-59.36226628,0.00018074,2]
[358820631,1745466632093,-514.99819928,0.00018074,2]
[358820632,1745466632102,-500.0,0.00018074,2]
[358820633,1745466632112,-500.0,0.00018074,2]
[358820634,1745466632122,-500.0,0.00018074,2]
[358820635,1745466632131,-500.0,0.00018074,2]
[358820636,1745466632141,-236.07217348,0.00018074,2]
[358820637,1745466632151,-500.0,0.00018074,2]
[358820638,1745466632160,-358.89380612,0.00018074,2]
[358820640,1745466632170,-500.0,0.00018074,2]
[358820642,1745466632180,-500.0,0.00018074,2]
[358820659,1745466632356,-500.0,0.00018074,2]
[358820661,1745466632367,-500.0,0.00018074,2]
[358820662,1745466632377,-500.0,0.00018074,2]
[358820663,1745466632387,-500.0,0.00018074,2]
[358820664,1745466632396,-500.0,0.00018074,2]
[358820665,1745466632405,-500.0,0.00018074,2]
[358820666,1745466632415,-500.0,0.00018074,2]
[358820667,1745466632424,-300.0,0.00018074,2]
[358820668,1745466632434,-500.0,0.00018074,2]
[358820669,1745466632443,-393.54173371,0.00018074,2]
[358820670,1745466632453,-500.0,0.00018074,2]
[358820671,1745466632462,-500.0,0.00018074,2]
[358820672,1745466632472,-500.0,0.00018074,2]
[358820673,1745466632481,-500.0,0.00018074,2]
[358820674,1745466632491,-500.0,0.00018074,2]
[358820675,1745466632500,-500.0,0.00018074,2]
[358820676,1745466632510,-500.0,0.00018074,2]
[358820677,1745466632519,-500.0,0.00018074,2]
[358820678,1745466632529,-500.0,0.00018074,2]
[358820679,1745466632538,-500.0,0.00018074,2]
[358820680,1745466632547,-433.83191983,0.00018074,2]
[358820681,1745466632557,-461.65250011,0.00018074,2]
[358820682,1745466632569,-38.34749989,0.00018074,2]
[358820683,1745466632579,-500.0,0.00018074,2]
[358820684,1745466632588,-501.18822011,0.00018074,2]
[358820685,1745466632598,-500.0,0.00018074,2]
[358820686,1745466632607,-499.3395187,0.00018074,2]
[358820687,1745466632616,-500.0,0.00018074,2]
[358820688,1745466632626,-500.0,0.00018074,2]
[358820689,1745466632635,-500.0,0.00018074,2]
[358820690,1745466632644,-500.0,0.00018074,2]
[358820691,1745466632654,-364.85820347,0.00018074,2]
[358820692,1745466632663,-500.0,0.00018074,2]
[358820693,1745466632673,-500.0,0.00018074,2]
[358820694,1745466632682,-500.0,0.00018074,2]
[358820695,1745466632692,-500.0,0.00018074,2]
[358820696,1745466632702,-1680.0,0.00019815,2]
[358820697,1745466632711,-250.0,0.00019876,2]
[358820698,1745466632720,-576.6764381,0.00020318,2]
[358820699,1745466632729,-1970.26130511,0.00021468,2]
[358820700,1745466632738,-370.07648397,0.00021567,2]
[358820701,1745466632748,-1000.0,0.00021567,2]
[358820702,1745466632757,-29312.50580588,0.00021567,2]
[358820703,1745466632767,-50232.34230611,0.00021568,3]
[358820704,1745466632777,-160.0,0.00021568,3]
[358820705,1745466632786,-840.0731918,0.00021568,3]
[358820706,1745466632796,-5000.0,0.00021668,2]
[358820707,1745466632806,-177.54083388,0.00021677,2]
[358820708,1745466632816,-420.89490186,0.00021677,2]
[358820709,1745466632825,-160.0,0.00021683,2]
[358820710,1745466632835,-736.4046509,0.00021817,2]
[358820711,1745466632844,-151.0,0.00021904,2]
[358820712,1745466632854,-207.4,0.00021904,2]
[358820713,1745466632863,-501.11088098,0.00021904,2]
[358820714,1745466632872,-157.31,0.00021907,3]
[358820715,1745466632881,-471.96,0.00021907,3]
[358820716,1745466632890,-500.0,0.00021917,2]
[358820717,1745466632900,-151.0,0.00021917,2]
[358820718,1745466632909,-151.0,0.00021917,2]
[358820719,1745466632919,-500.0,0.00021917,2]
[358820720,1745466632928,-500.0,0.00021917,2]
[358820721,1745466632938,-500.0,0.00021917,2]
[358820722,1745466632948,-503.26303788,0.00021917,2]
[358820723,1745466632957,-291.784893,0.00021917,2]
[358820724,1745466632967,-291.784893,0.00021917,2]
[358820725,1745466632978,-291.784893,0.00021917,2]
[358820726,1745466632987,-151.0,0.00021917,2]
[358820727,1745466632997,-151.0,0.00021917,2]
[358820728,1745466633006,-1088.38,0.00021917,2]
[358820729,1745466633016,-250.06020564,0.00021917,2]
[358820730,1745466633026,-500.0,0.00021917,2]
[358820731,1745466633036,-500.0,0.00021917,2]
[358820732,1745466633046,-500.0,0.00021917,2]
[358820733,1745466633055,-166.37656163,0.00021917,2]
[358820734,1745466633066,-500.0,0.00021917,2]
[358820735,1745466633075,-186.87103313,0.00021917,2]
[358820736,1745466633086,-500.0,0.00021917,2]
[358820737,1745466633099,-500.0,0.00021917,2]
[358820738,1745466633109,-500.0,0.00021917,2]
[358820739,1745466633119,-504.02258614,0.00021917,2]
[358820740,1745466633129,-500.0,0.00021917,2]
[358820741,1745466633140,-500.0,0.00021917,2]
[358820742,1745466633150,-500.0,0.00021917,2]
[358820743,1745466633160,-500.0,0.00021917,2]
[358820744,1745466633170,-500.0,0.00021917,2]
[358820745,1745466633179,-500.0,0.00021917,2]
[358820746,1745466633188,-396.86011081,0.00021917,2]
[358820747,1745466633198,-500.0,0.00021917,2]
[358820748,1745466633207,-500.0,0.00021917,2]
[358820749,1745466633217,-500.0,0.00021917,2]
[358820750,1745466633227,-500.0,0.00021917,2]
[358820751,1745466633236,-500.0,0.00021917,2]
[358820752,1745466633245,-500.0,0.00021917,2]
[358820753,1745466633255,-500.0,0.00021917,2]
[358820754,1745466633264,-507.38211266,0.00021917,2]
[358820755,1745466633274,-500.0,0.00021917,2]
[358820756,1745466633283,-500.0,0.00021917,2]
[358820757,1745466633292,-500.0,0.00021917,2]
[358820758,1745466633301,-560.65,0.00021917,2]
[358820759,1745466633311,-500.0,0.00021917,2]
[358820760,1745466633321,-500.0,0.00021917,2]
[358820761,1745466633330,-500.0,0.00021917,2]
[358820762,1745466633339,-500.0,0.00021917,2]
[358820763,1745466633349,-500.0,0.00021917,2]
[358820764,1745466633358,-500.0,0.00021917,2]
[358820765,1745466633368,-500.0,0.00021917,2]
[358820766,1745466633377,-465.39964829,0.00021917,2]
[358820767,1745466633387,-300.0,0.00021917,2]
[358820768,1745466633397,-500.0,0.00021917,2]
[358820769,1745466633406,-500.0,0.00021917,2]
[358820770,1745466633416,-500.0,0.00021917,2]
[358820771,1745466633425,-500.0,0.00021917,2]
[358820772,1745466633435,-500.0,0.00021917,2]
[358820773,1745466633444,-500.0,0.00021917,2]
[358820774,1745466633454,-500.0,0.00021917,2]
[358820775,1745466633464,-500.0,0.00021917,2]
[358820776,1745466633473,-500.0,0.00021917,2]
[358820777,1745466633483,-584.40423591,0.00021917,2]
[358820778,1745466633493,-500.0,0.00021917,2]
[358820779,1745466633502,-500.0,0.00021917,2]
[358820780,1745466633512,-500.0,0.00021917,2]
[358820781,1745466633522,-238.39243134,0.00021917,2]
[358820782,1745466633532,-512.05,0.00021917,2]
[358820783,1745466633542,-556.7,0.00021917,2]
[358820784,1745466633552,-399.11034924,0.00021917,2]
[358820785,1745466633562,-523.47913445,0.00021917,2]
[358820786,1745466633574,-500.0,0.00021917,2]
[358820787,1745466633584,-500.0,0.00021917,2]
[358820788,1745466633594,-500.0,0.00021917,2]
[358820789,1745466633604,-500.0,0.00021917,2]
[358820790,1745466633613,-500.0,0.00021917,2]
[358820791,1745466633623,-500.0,0.00021917,2]
[358820792,1745466633632,-500.0,0.00021917,2]
[358820793,1745466633642,-500.0,0.00021917,2]
[358820794,1745466633652,-500.0,0.00021917,2]
[358820795,1745466633662,-864.41,0.00021917,2]
[358820796,1745466633672,-500.0,0.00021917,2]
[358820797,1745466633682,-500.0,0.00021917,2]
[358820798,1745466633692,-500.0,0.00021917,2]
[358820799,1745466633702,-500.0,0.00021917,2]
[358820800,1745466633715,-500.0,0.00021917,2]
[358820801,1745466633725,-500.0,0.00021917,2]
[358820802,1745466633734,-500.0,0.00021917,2]
[358820803,1745466633744,-840.32,0.00021917,2]
[358820804,1745466633754,-500.0,0.00021917,2]
[358820805,1745466633764,-500.0,0.00021917,2]
[358820806,1745466633773,-500.0,0.00021917,2]
[358820807,1745466633782,-500.0,0.00021917,2]
[358820808,1745466633792,-500.0,0.00021917,2]
[358820809,1745466633802,-500.0,0.00021917,2]
[358820810,1745466633812,-1126.85,0.00021917,2]
[358820811,1745466633822,-500.0,0.00021917,2]
[358820812,1745466633832,-500.0,0.00021917,2]
[358820813,1745466633842,-500.0,0.00021917,2]
[358820814,1745466633852,-805.42,0.00021917,2]
[358820815,1745466633861,-805.42,0.00021917,2]
[358820816,1745466633871,-805.42,0.00021917,2]
[358820817,1745466633881,-805.42,0.00021917,2]
[358820818,1745466633890,-805.42,0.00021917,2]
[358820819,1745466633901,-805.42,0.00021917,2]
[358820820,1745466633911,-500.0,0.00021917,2]
[358820821,1745466633921,-805.42,0.00021917,2]
[358820822,1745466633931,-805.42,0.00021917,2]
[358820823,1745466633940,-805.42,0.00021917,2]
[358820824,1745466633951,-500.0,0.00021917,2]
[358820825,1745466633961,-805.42,0.00021917,2]
[358820826,1745466633970,-805.42,0.00021917,2]
[358820827,1745466633980,-805.42,0.00021917,2]
[358820828,1745466633990,-805.42,0.00021917,2]
[358820829,1745466634000,-805.42,0.00021917,2]
[358820830,1745466634011,-805.42,0.00021917,2]
[358820831,1745466634021,-805.42,0.00021917,2]
[358820832,1745466634031,-805.42,0.00021917,2]
[358820833,1745466634042,-805.42,0.00021917,2]
[358820834,1745466634052,-500.0,0.00021917,2]
[358820835,1745466634065,-500.0,0.00021917,2]
[358820836,1745466634076,-500.0,0.00021917,2]
[358820837,1745466634086,-500.0,0.00021917,2]
[358820838,1745466634096,-500.0,0.00021917,2]
[358820839,1745466634106,-500.0,0.00021917,2]
[358820840,1745466634116,-500.0,0.00021917,2]
[358820841,1745466634126,-500.0,0.00021917,2]
[358820842,1745466634135,-1062.87,0.00021917,2]
[358820843,1745466634146,-500.0,0.00021917,2]
[358820844,1745466634157,-500.0,0.00021917,2]
[358820845,1745466634169,-500.0,0.00021917,2]
[358820846,1745466634180,-500.0,0.00021917,2]
[358820847,1745466634190,-500.0,0.00021917,2]
[358820848,1745466634199,-184.80603476,0.00021917,2]
[358820849,1745466634209,-500.0,0.00021917,2]
[358820850,1745466634219,-500.0,0.00021917,2]
[358820851,1745466634229,-500.0,0.00021917,2]
[358820852,1745466634238,-500.0,0.00021917,2]
[358820853,1745466634248,-500.0,0.00021917,2]
[358820854,1745466634258,-500.0,0.00021917,2]
[358820855,1745466634267,-500.0,0.00021917,2]
[358820856,1745466634277,-500.0,0.00021917,2]
[358820857,1745466634286,-500.0,0.00021917,2]
[358820858,1745466634297,-500.0,0.00021917,2]
[358820859,1745466634308,-500.0,0.00021917,2]
[358820860,1745466634318,-500.0,0.00021917,2]
[358820861,1745466634327,-668.78,0.00021917,2]
[358820862,1745466634337,-500.0,0.00021917,2]
[358820863,1745466634347,-500.0,0.00021917,2]
[358820864,1745466634357,-500.0,0.00021917,2]
[358820865,1745466634366,-500.0,0.00021917,2]
[358820866,1745466634376,-500.0,0.00021917,2]
[358820867,1745466634386,-792.83,0.00021917,2]
[358820868,1745466634396,-500.0,0.00021917,2]
[358820869,1745466634406,-369.62873421,0.00021917,2]
[358820870,1745466634416,-500.0,0.00021917,2]
[358820871,1745466634425,-500.0,0.00021917,2]
[358820872,1745466634435,-500.0,0.00021917,2]
[358820873,1745466634444,-562.44,0.00021917,2]
[358820874,1745466634454,-500.0,0.00021917,2]
[358820875,1745466634463,-500.0,0.00021917,2]
[358820876,1745466634474,-500.0,0.00021917,2]
[358820877,1745466634484,-500.0,0.00021917,2]
[358820878,1745466634494,-500.0,0.00021917,2]
[358820879,1745466634504,-544.83,0.00021917,2]
[358820880,1745466634514,-327.96255834,0.00021917,2]
[358820881,1745466634524,-500.0,0.00021917,2]
[358820882,1745466634533,-500.0,0.00021917,2]
[358820883,1745466634543,-738.39,0.00021917,2]
[358820884,1745466634553,-500.0,0.00021917,2]
[358820885,1745466634563,-500.0,0.00021917,2]
[358820886,1745466634572,-500.0,0.00021917,2]
[358820887,1745466634582,-500.0,0.00021917,2]
[358820888,1745466634592,-500.0,0.00021917,2]
[358820889,1745466634602,-500.0,0.00021917,2]
[358820890,1745466634612,-511.10267455,0.00021917,2]
[358820891,1745466634622,-500.0,0.00021917,2]
[358820892,1745466634632,-431.10197974,0.00021917,2]
[358820893,1745466634641,-500.0,0.00021917,2]
[358820894,1745466634652,-363.46376739,0.00021917,2]
[358820895,1745466634662,-735.18,0.00021917,2]
[358820896,1745466634672,-500.0,0.00021917,2]
[358820897,1745466634682,-500.0,0.00021917,2]
[358820898,1745466634692,-500.0,0.00021917,2]
[358820899,1745466634702,-243.42765386,0.00021917,2]
[358820900,1745466634713,-500.0,0.00021917,2]
[358820901,1745466634722,-500.0,0.00021917,2]
[358820902,1745466634732,-1158.91,0.00021917,2]
[358820903,1745466634742,-511.72,0.00021917,2]
[358820904,1745466634751,-183.50849938,0.00021917,2]
[358820905,1745466634761,-500.0,0.00021917,2]
[358820906,1745466634770,-532.22,0.00021917,2]
[358820907,1745466634780,-500.0,0.00021917,2]
[358820908,1745466634789,-1294.17,0.00021917,2]
[358820909,1745466634799,-608.84,0.00021917,2]
[358820910,1745466634809,-500.0,0.00021917,2]
[358820911,1745466634820,-500.0,0.00021917,2]
[358820912,1745466634829,-500.0,0.00021917,2]
[358820913,1745466634838,-500.0,0.00021917,2]
[358820914,1745466634848,-500.0,0.00021917,2]
[358820915,1745466634858,-620.07,0.00021917,2]
[358820916,1745466634867,-500.0,0.00021917,2]
[358820917,1745466634877,-500.0,0.00021917,2]
[358820918,1745466634888,-500.0,0.00021917,2]
[358820919,1745466634897,-591.57,0.00021917,2]
[358820920,1745466634908,-500.0,0.00021917,2]
[358820921,1745466634918,-500.0,0.00021917,2]
[358820922,1745466634928,-500.0,0.00021917,2]
[358820923,1745466634938,-500.0,0.00021917,2]
[358820924,1745466634948,-741.34,0.00021917,2]
[358820925,1745466634958,-500.0,0.00021917,2]
[358820926,1745466634968,-500.0,0.00021917,2]
[358820927,1745466634978,-500.0,0.00021917,2]
[358820928,1745466634988,-500.0,0.00021917,2]
[358820929,1745466634998,-500.0,0.00021917,2]
[358820930,1745466635007,-500.0,0.00021917,2]
[358820931,1745466635017,-500.0,0.00021917,2]
[358820932,1745466635027,-500.0,0.00021917,2]
[358820933,1745466635037,-500.0,0.00021917,2]
[358820934,1745466635048,-500.0,0.00021917,2]
[358820935,1745466635058,-500.0,0.00021917,2]
[358820936,1745466635068,-500.0,0.00021917,2]
[358820937,1745466635078,-500.0,0.00021917,2]
[358820938,1745466635088,-500.0,0.00021917,2]
[358820939,1745466635100,-500.0,0.00021917,2]
[358820940,1745466635110,-500.0,0.00021917,2]
[358820941,1745466635121,-500.0,0.00021917,2]
[358820942,1745466635131,-500.0,0.00021917,2]
[358820943,1745466635141,-500.0,0.00021917,2]
[358820944,1745466635152,-500.0,0.00021917,2]
[358820945,1745466635162,-500.0,0.00021917,2]
[358820946,1745466635172,-500.0,0.00021917,2]
[358820947,1745466635181,-500.0,0.00021917,2]
[358820948,1745466635191,-500.0,0.00021917,2]
[358820949,1745466635201,-500.0,0.00021917,2]
[358820950,1745466635210,-500.0,0.00021917,2]
[358820951,1745466635219,-500.0,0.00021917,2]
[358820952,1745466635229,-500.0,0.00021917,2]
[358820953,1745466635238,-500.0,0.00021917,2]
[358820954,1745466635248,-500.0,0.00021917,2]
[358820955,1745466635258,-500.0,0.00021917,2]
[358820956,1745466635267,-500.0,0.00021917,2]
[358820957,1745466635277,-500.0,0.00021917,2]
[358820958,1745466635286,-500.0,0.00021917,2]
[358820959,1745466635296,-500.0,0.00021917,2]
[358820960,1745466635305,-500.0,0.00021917,2]
[358820961,1745466635315,-433.18,0.00021917,2]
[358820962,1745466635324,-978.08091429,0.00021917,2]
[358820963,1745466635671,-251.82908571,0.00021917,2]
[358820964,1745466635682,-500.0,0.00021917,2]
[358820965,1745466635693,-500.0,0.00021917,2]
[358820966,1745466635702,-500.0,0.00021917,2]
[358820967,1745466635712,-500.0,0.00021917,2]
[358820968,1745466635733,-500.0,0.00021917,2]
[358820969,1745466635746,-500.0,0.00021917,2]
[358820970,1745466635757,-501.02104774,0.00021917,2]
[358820971,1745466635767,-1087.66,0.00021917,2]
[358820972,1745466635778,-399.0784713,0.00021917,2]
[358820973,1745466635788,-500.0,0.00021917,2]
[358820974,1745466635799,-852.61,0.00021917,2]
[358820975,1745466635809,-500.0,0.00021917,2]
[358820976,1745466635820,-507.23088869,0.00021917,2]
[358820977,1745466635830,-500.0,0.00021917,2]
[358820978,1745466635840,-509.72264243,0.00021917,2]
[358820979,1745466635850,-505.18507414,0.00021917,2]
[358820980,1745466635860,-500.0,0.00021917,2]
[358820981,1745466635871,-923.69,0.00021917,2]
[358820982,1745466635881,-613.28,0.00021917,2]
[358820983,1745466635891,-500.0,0.00021917,2]
[358820984,1745466635902,-500.0,0.00021917,2]
[358820985,1745466635913,-500.0,0.00021917,2]
[358820986,1745466635924,-1069.95,0.00021917,2]
[358820987,1745466635933,-500.0,0.00021917,2]
[358820988,1745466635944,-500.0,0.00021917,2]
[358820989,1745466635954,-500.0,0.00021917,2]
[358820990,1745466635964,-500.0,0.00021917,2]
[358820991,1745466635973,-500.0,0.00021917,2]
[358820992,1745466635983,-500.0,0.00021917,2]
[358820993,1745466635993,-500.0,0.00021917,2]
[358820994,1745466636003,-500.0,0.00021917,2]
[358820995,1745466636013,-500.0,0.00021917,2]
[358820996,1745466636024,-500.0,0.00021917,2]
[358820997,1745466636034,-500.0,0.00021917,2]
[358820998,1745466636045,-500.0,0.00021917,2]
[358820999,1745466636056,-1000.0,0.00021917,2]
[358821000,1745466636067,-1196.21,0.00021917,2]
[358821001,1745466636077,-500.0,0.00021917,2]
[358821002,1745466636087,-3028.0,0.00021917,2]
[358821003,1745466636100,-500.0,0.00021917,2]
[358821004,1745466636111,-517.57,0.00021917,2]
[358821005,1745466636121,-1327.99,0.00021917,2]
[358821006,1745466636130,-500.0,0.00021917,2]
[358821007,1745466636140,-500.0,0.00021917,2]
[358821008,1745466636150,-510.25166452,0.00021917,2]
[358821009,1745466636161,-463.90463715,0.00021917,2]
[358821010,1745466636171,-842.79,0.00021917,2]
[358821011,1745466636182,-883.95,0.00021917,2]
[358821012,1745466636192,-500.0,0.00021917,2]
[358821013,1745466636202,-1104.0,0.00021917,2]
[358821014,1745466636212,-452.41073166,0.00021917,2]
[358821033,1745466637986,-47.58926834,0.00021917,2]
[358821034,1745466637997,-500.0,0.00021917,2]
[358821035,1745466638007,-92.73231356,0.00021917,2]
[358821036,1745466638019,-675.13768644,0.00021917,2]
[358821037,1745466638030,-542.0,0.00021917,2]
[358821038,1745466638040,-500.0,0.00021917,2]
[358821039,1745466638050,-401.16031833,0.00021917,2]
[358821040,1745466638062,-98.83968167,0.00021917,2]
[358821042,1745466638072,-642.24,0.00021917,2]
[358821044,1745466638082,-862.55,0.00021917,2]
[358821046,1745466638092,-500.0,0.00021917,2]
[358821049,1745466638102,-354.6590998,0.00021917,2]
[358821051,1745466638114,-257.1409002,0.00021917,2]
[358821053,1745466638125,-565.43,0.00021917,2]
[358821055,1745466638135,-500.0,0.00021917,2]
[358821057,1745466638145,-513.13,0.00021917,2]
[358821059,1745466638155,-500.0,0.00021917,2]
[358821062,1745466638165,-500.0,0.00021917,2]
[358821065,1745466638174,-311.20470444,0.00021917,2]
[358821068,1745466638238,-236.88529556,0.00021917,2]
[358821070,1745466638249,-897.56961841,0.00021917,2]
[358821101,1745466640634,-0.00996785,0.00021568,3]
[358821148,1745466643148,-2203.76705325,0.00021568,3]
[358821154,1745466646175,-1871.480904,0.00021568,3]
[358821155,1745466646187,-749.978109,0.00021568,3]
[358821156,1745466646199,-1600.0,0.00021568,3]
[358821158,1745466646229,-1860.0,0.00021568,3]
[358821163,1745466659347,-201.23614995,0.00018074,2]
[358821165,1745466683507,-452.50130338,0.00018072,2]
[358821166,1745466723552,-152.36538298,0.00018071,2]
[358821167,1745466753410,-147.63461702,0.00018071,2]
[358821168,1745466753436,-4.36538298,0.00018071,2]
[358821169,1745466788696,-165.08807758,0.0001807,2]
[358821170,1745466843043,-300.0,0.0001807,2]
[358821171,1745466857346,-170.34271849,0.00018071,2]
[358821172,1745466870048,-200.0,0.00018071,2]
[358821173,1745466895193,-284.84434557,0.0001807,2]
[358821174,1745466902868,-245.68937109,0.00018069,2]
[358821175,1745466911498,-54.31062891,0.00018069,2]
[358821176,1745466911522,-97.68937109,0.00018069,2]
[358821177,1745466963442,-168.488385,0.00018069,2]
[358821178,1745466992782,-170.34271849,0.00018068,2]
[358821179,1745467005363,-154.9957,0.00018068,2]
[358821180,1745467015608,-0.64290594,0.00018068,2]
[358821181,1745467015639,-151.35709406,0.00018068,2]
[358821182,1745467024587,-179.76296344,0.00018067,2]
[358821183,1745467039704,-120.23703656,0.00018067,2]
[358821184,1745467039735,-90.46546344,0.00018068,2]
[358821185,1745467059923,-172.33156,0.00018068,2]
[358821186,1745467082887,-179.25845786,0.00018067,2]
[358821187,1745467099994,-120.74154214,0.00018067,2]
[358821188,1745467100023,-85.8458825,0.00018068,2]
[358821189,1745467100047,-20.67103536,0.00018068,2]